bitfinex-derivatives/quotes_BNBF0:USTF0_20260110
["timestamp","ask_amount","ask_price","bid_price","bid_amount"]
[1768029648206,0.19164367,908.35,907.68,0.69837736]
[1768029648408,0.19164367,908.35,907.69,0.69837736]
[1768029648611,0.19164367,908.35,907.7,0.69837736]
[1768029648911,0.19164367,908.35,907.71,0.69837736]
[1768029649108,0.19164367,908.35,907.72,0.69837736]
[1768029649308,0.19164367,908.35,907.58,1.536]
[1768029649508,0.19164367,908.35,907.59,0.6983905]
[1768029649811,0.19164367,908.35,907.6,0.6983905]
[1768029650011,0.19164367,908.35,907.61,0.6983905]
[1768029650310,0.19164367,908.35,907.62,0.6983905]
[1768029650511,0.19164367,908.35,907.63,0.6983905]
[1768029650711,0.19164367,908.35,907.64,0.6983905]
[1768029651006,0.19164367,908.35,907.65,0.6983905]
[1768029651211,0.19164367,908.35,907.66,0.6983905]
[1768029651408,0.19164367,908.35,907.67,0.6983905]
[1768029651607,0.19164367,908.35,907.68,0.6983905]
[1768029651907,0.19164367,908.35,907.69,0.6983905]
[1768029652212,0.19164367,908.35,907.7,0.6983905]
[1768029652409,0.19164367,908.35,907.71,0.6983905]
[1768029652608,0.19164367,908.35,907.72,0.6983905]
[1768029652910,0.19164367,908.35,907.58,1.536]
[1768029653112,0.19164367,908.35,907.59,0.69797323]
[1768029653306,0.19164367,908.35,907.6,0.69797323]
[1768029653509,0.19164367,908.35,907.61,0.69797323]
[1768029653709,0.19164367,908.35,907.62,0.69797323]
[1768029653909,0.19164367,908.35,907.63,0.69797323]
[1768029654108,0.19164367,908.35,907.64,0.69797323]
[1768029654307,0.19164367,908.35,907.65,0.69797323]
[1768029654511,0.19164367,908.35,907.66,0.69797323]
[1768029654807,0.19164367,908.35,907.67,0.69797323]
[1768029655011,0.19164367,908.35,907.68,0.69797323]
[1768029655209,0.19164367,908.35,907.69,0.69797323]
[1768029655411,0.19164367,908.35,907.7,0.69797323]
[1768029655608,0.19164367,908.35,907.71,0.69797323]
[1768029655808,0.19164367,908.35,907.72,0.69797323]
[1768029656008,0.19164367,908.35,907.58,1.536]
[1768029656209,0.19164367,908.35,907.59,0.69797328]
[1768029656412,0.19164367,908.35,907.6,0.69797328]
[1768029656611,0.19164367,908.35,907.61,0.69797328]
[1768029656809,0.19164367,908.35,907.62,0.69797328]
[1768029657014,0.19164367,908.35,907.63,0.69797328]
[1768029657213,0.19164367,908.35,907.64,0.69797328]
[1768029657410,0.19164367,908.35,907.65,0.69797328]
[1768029657609,0.19164367,908.35,907.66,0.69797328]
[1768029657912,0.19164367,908.35,907.67,0.69797328]
[1768029658110,0.19164367,908.35,907.68,0.69797328]
[1768029658412,0.19164367,908.35,907.69,0.69797328]
[1768029658609,0.19164367,908.35,907.7,0.69797328]
[1768029658811,0.19164367,908.35,907.71,0.69797328]
[1768029659010,0.19164367,908.35,907.72,0.69797328]
[1768029659214,0.19164367,908.35,907.58,1.536]
[1768029659416,0.19164367,908.35,907.59,0.69797427]
[1768029659614,0.19164367,908.35,907.6,0.69797427]
[1768029659811,0.19164367,908.35,907.61,0.69797427]
[1768029660015,0.19164367,908.35,907.62,0.69797427]
[1768029660213,0.19164367,908.35,907.63,0.69797427]
[1768029660411,0.19164367,908.35,907.64,0.69797427]
[1768029660612,0.19164367,908.35,907.65,0.69797427]
[1768029660812,0.19164367,908.35,907.66,0.69797427]
[1768029661016,0.19164367,908.35,907.67,0.69797427]
[1768029661215,0.19164367,908.35,907.68,0.69797427]
[1768029661413,0.19164367,908.35,907.69,0.69797427]
[1768029661613,0.19164367,908.35,907.7,0.69797427]
[1768029661816,0.19164367,908.35,907.71,0.69797427]
[1768029662016,0.19164367,908.35,907.72,0.69797427]
[1768029662316,0.19164367,908.35,907.58,1.536]
[1768029662517,0.19164367,908.35,907.59,0.69804958]
[1768029662817,0.19164367,908.35,907.6,0.69804958]
[1768029663011,0.19164367,908.35,907.61,0.69804958]
[1768029663210,0.19164367,908.35,907.62,0.69804958]
[1768029663511,0.19164367,908.35,907.63,0.69804958]
[1768029663716,0.19164367,908.35,907.64,0.69804958]
[1768029663914,0.19164367,908.35,907.65,0.69804958]
[1768029664216,0.19164367,908.35,907.66,0.69804958]
[1768029664414,0.19164367,908.35,907.67,0.69804958]
[1768029664612,0.19164367,908.35,907.68,0.69804958]
[1768029664812,0.19164367,908.35,907.69,0.69804958]
[1768029665012,0.19164367,908.35,907.7,0.69804958]
[1768029665212,0.19164367,908.35,907.71,0.69804958]
[1768029665416,0.19164367,908.35,907.72,0.69804958]
[1768029665616,0.19164367,908.35,907.73,0.69804958]
[1768029665814,0.19164367,908.35,907.58,1.536]
[1768029666018,0.19164367,908.35,907.59,0.69817825]
[1768029666218,0.19164367,908.35,907.6,0.69817825]
[1768029666518,0.19164367,908.35,907.61,0.69817825]
[1768029666817,0.19164367,908.35,907.62,0.69817825]
[1768029667018,0.19164367,908.35,907.63,0.69817825]
[1768029667318,0.19164367,908.35,907.64,0.69817825]
[1768029667517,0.19164367,908.35,907.65,0.69817825]
[1768029667716,0.19164367,908.35,907.66,0.69817825]
[1768029667917,0.19164367,908.35,907.67,0.69817825]
[1768029668115,0.19164367,908.35,907.68,0.69817825]
[1768029668319,0.19164367,908.35,907.69,0.69817825]
[1768029668519,0.19164367,908.35,907.7,0.69817825]
[1768029668719,0.19164367,908.35,907.71,0.69817825]
[1768029668916,0.19164367,908.35,907.72,0.69817825]
[1768029669121,0.19164367,908.35,907.73,0.69817825]
[1768029669318,0.19164367,908.35,907.58,1.536]
[1768029669515,0.19164367,908.35,907.59,0.69819456]
[1768029669720,5.26525357,908.55,907.6,0.69819456]
[1768029670016,0.1916231,908.45,907.63,0.82491122]
[1768029670222,0.1916231,908.45,907.64,0.69819456]
[1768029670520,0.1916231,908.45,907.65,0.69819456]
[1768029670721,0.1916231,908.45,907.66,0.69819456]
[1768029670922,0.1916231,908.45,907.67,0.69819456]
[1768029671218,0.1916231,908.45,907.68,0.69819456]
[1768029671418,0.1916231,908.45,907.69,0.69819456]
[1768029671622,0.1916231,908.45,907.7,0.69819456]
[1768029671823,0.1916231,908.45,907.71,0.69819456]
[1768029672023,0.1916231,908.45,907.72,0.69819456]
[1768029672222,0.1916231,908.45,907.73,0.69819456]
[1768029672419,0.1916231,908.45,907.74,0.69819456]
[1768029672623,0.1916231,908.45,907.75,0.69819456]
[1768029672821,0.1916231,908.45,907.76,0.69819456]
[1768029673020,0.1916231,908.45,907.77,0.69819456]
[1768029673222,0.1916231,908.45,907.78,0.69819456]
[1768029673420,0.1916231,908.45,907.79,0.69819456]
[1768029673619,0.1916231,908.45,907.8,0.69819456]
[1768029673822,0.1916231,908.45,907.81,0.69819456]
[1768029674025,0.1916231,908.45,907.82,0.69819456]
[1768029674224,0.1916231,908.45,907.58,1.536]
[1768029674225,0.1916231,908.45,907.83,0.69819456]
[1768029674426,0.1916231,908.45,907.84,0.69819456]
[1768029674721,0.1916231,908.45,907.85,0.69819456]
[1768029674923,0.1916231,908.45,907.56,0.82491122]
[1768029675122,0.1916231,908.45,907.57,0.69672959]
[1768029675423,0.1916231,908.45,907.58,0.69672959]
[1768029675623,0.1916231,908.45,907.59,0.69672959]
[1768029675823,0.1916231,908.45,907.6,0.69672959]
[1768029676026,0.1916231,908.45,907.61,0.69672959]
[1768029676222,0.1916231,908.45,907.41,1.10051908]
[1768029676427,0.1916231,908.45,907.37,3.55642065]
[1768029676428,0.1916231,908.45,907.57,0.82547274]
[1768029676627,0.1916231,908.45,907.58,0.69641908]
[1768029676827,0.1916231,908.45,907.59,0.69641908]
[1768029677024,0.1916231,908.45,907.6,0.69641908]
[1768029677225,0.1916231,908.45,907.61,0.69641908]
[1768029677426,0.1916231,908.45,907.62,0.69641908]
[1768029677728,0.1916231,908.45,907.63,0.69641908]
[1768029677926,0.1916231,908.45,907.64,0.69641908]
[1768029678127,0.1916231,908.45,907.65,0.69641908]
[1768029678327,0.1916231,908.45,907.66,0.69641908]
[1768029678524,0.1916231,908.45,907.67,0.69641908]
[1768029678728,0.1916231,908.45,907.68,0.69641908]
[1768029678924,0.1916231,908.45,907.69,0.69641908]
[1768029679129,0.1916231,908.45,907.64,1.755]
[1768029679130,0.1916231,908.45,907.7,0.69641908]
[1768029679330,0.1916231,908.45,907.71,0.69641908]
[1768029679530,0.1916231,908.45,907.64,1.755]
[1768029679531,0.1916231,908.45,907.72,0.69641908]
[1768029679728,0.1916231,908.45,907.73,0.69641908]
[1768029679928,0.1916231,908.45,907.74,0.69641908]
[1768029680126,0.1916231,908.45,907.75,0.69641908]
[1768029680329,0.1916231,908.45,907.76,0.69641908]
[1768029680529,0.1916231,908.45,907.77,0.69641908]
[1768029680728,0.1916231,908.45,907.78,0.69641908]
[1768029680928,0.1916231,908.45,907.79,0.69641908]
[1768029681133,0.1916231,908.45,907.8,0.69641908]
[1768029681430,0.1916231,908.45,907.81,0.69641908]
[1768029681629,0.1916231,908.45,907.82,0.69641908]
[1768029681833,0.1916231,908.45,907.83,0.69641908]
[1768029682032,0.1916231,908.45,907.64,1.755]
[1768029682333,0.1916231,908.45,907.65,0.69490445]
[1768029682534,0.1916231,908.45,907.66,0.69490445]
[1768029682735,0.1916231,908.45,907.67,0.69490445]
[1768029682936,0.1916231,908.45,907.68,0.69490445]
[1768029683132,0.1916231,908.45,907.69,0.69490445]
[1768029683336,0.1916231,908.45,907.7,0.69490445]
[1768029683532,0.1916231,908.45,907.71,0.69490445]
[1768029683730,0.1916231,908.45,907.72,0.69490445]
[1768029683934,0.1916231,908.45,907.73,0.69490445]
[1768029684133,0.1916231,908.45,907.74,0.69490445]
[1768029684332,0.1916231,908.45,907.75,0.69490445]
[1768029684633,0.1916231,908.45,907.76,0.69490445]
[1768029684831,0.1916231,908.45,907.77,0.69490445]
[1768029685035,0.1916231,908.45,907.78,0.69490445]
[1768029685232,0.1916231,908.45,907.79,0.69490445]
[1768029685532,0.1916231,908.45,907.8,0.69490445]
[1768029685735,0.1916231,908.45,907.64,1.755]
[1768029685736,0.1916231,908.45,907.81,0.69490445]
[1768029685932,0.1916231,908.45,907.82,0.69490445]
[1768029686133,0.1916231,908.45,907.83,0.69490445]
[1768029686333,0.1916231,908.45,907.64,1.755]
[1768029686633,0.1916231,908.45,907.65,0.69466426]
[1768029686834,0.1916231,908.45,907.66,0.69466426]
[1768029687037,0.1916231,908.45,907.67,0.69466426]
[1768029687236,0.1916231,908.45,907.68,0.69466426]
[1768029687440,5.26525357,908.55,907.69,0.69466426]
[1768029687638,5.26525357,908.55,907.7,0.69466426]
[1768029687939,5.26525357,908.55,907.71,0.69466426]
[1768029688137,5.26525357,908.55,907.72,0.69466426]
[1768029688337,5.26525357,908.55,907.73,0.69466426]
[1768029688538,5.26525357,908.55,907.74,0.69466426]
[1768029688734,5.26525357,908.55,907.75,0.69466426]
[1768029688938,5.26525357,908.55,907.76,0.69466426]
[1768029689140,5.26525357,908.55,907.77,0.69466426]
[1768029689339,5.26525357,908.55,907.78,0.69466426]
[1768029689540,5.26525357,908.55,907.79,0.69466426]
[1768029689736,5.26525357,908.55,907.8,0.69466426]
[1768029689941,5.26525357,908.55,907.81,0.69466426]
[1768029690141,5.26525357,908.55,907.82,0.69466426]
[1768029690340,5.26525357,908.55,907.83,0.69466426]
[1768029690538,5.26525357,908.55,907.84,0.69466426]
[1768029690842,5.26525357,908.55,907.64,1.755]
[1768029691138,5.26525357,908.55,907.65,0.69443213]
[1768029691341,5.26525357,908.55,907.66,0.69443213]
[1768029691535,5.26525357,908.55,907.67,0.69443213]
[1768029691740,5.26525357,908.55,907.68,0.69443213]
[1768029691940,5.26525357,908.55,907.69,0.69443213]
[1768029692140,5.26525357,908.55,907.7,0.69443213]
[1768029692341,5.26525357,908.55,907.71,0.69443213]
[1768029692538,5.26525357,908.55,907.72,0.69443213]
[1768029692743,5.26525357,908.55,907.73,0.69443213]
[1768029692943,5.26525357,908.55,907.64,1.755]
[1768029693144,5.26525357,908.55,907.65,0.69460872]
[1768029693340,5.26525357,908.55,907.66,0.69460872]
[1768029693543,5.26525357,908.55,907.67,0.69460872]
[1768029693744,5.26525357,908.55,907.68,0.69460872]
[1768029694074,5.26525357,908.55,907.69,0.69460872]
[1768029694292,5.26525357,908.55,907.7,0.69460872]
[1768029694440,5.26525357,908.55,907.71,0.69460872]
[1768029694740,5.26525357,908.55,907.72,0.69460872]
[1768029694939,5.26525357,908.55,907.73,0.69460872]
[1768029695144,5.26525357,908.55,907.74,0.69460872]
[1768029695444,5.26525357,908.55,907.75,0.69460872]
[1768029695743,5.26525357,908.55,907.76,0.69460872]
[1768029696044,5.26525357,908.55,907.64,1.755]
[1768029696344,5.26525357,908.55,907.65,0.69472524]
[1768029696543,5.26525357,908.55,907.66,0.69472524]
[1768029696843,5.26525357,908.55,907.67,0.69472524]
[1768029697044,5.26525357,908.55,907.68,0.69472524]
[1768029697240,5.26525357,908.55,907.69,0.69472524]
[1768029697448,5.26525357,908.55,907.7,0.69472524]
[1768029697744,5.26525357,908.55,907.71,0.69472524]
[1768029698044,5.26525357,908.55,907.72,0.69472524]
[1768029698239,5.26525357,908.55,907.73,0.69472524]
[1768029698443,5.26525357,908.55,907.64,1.755]
[1768029698640,5.26525357,908.55,907.65,0.6949133]
[1768029698844,5.26525357,908.55,907.66,0.6949133]
[1768029699041,5.26525357,908.55,907.67,0.6949133]
[1768029699243,5.26525357,908.55,907.68,0.6949133]
[1768029699447,5.26525357,908.55,907.69,0.6949133]
[1768029699646,5.26525357,908.55,907.7,0.6949133]
[1768029699846,5.26525357,908.55,907.71,0.6949133]
[1768029700146,5.26525357,908.55,907.72,0.6949133]
[1768029700346,5.26525357,908.55,907.73,0.6949133]
[1768029700548,5.26525357,908.55,907.64,1.755]
[1768029700746,5.26525357,908.55,907.65,0.69501216]
[1768029700942,5.26525357,908.55,907.66,0.69501216]
[1768029701147,5.26525357,908.55,907.67,0.69501216]
[1768029701344,5.26525357,908.55,907.68,0.69501216]
[1768029701545,5.26525357,908.55,907.69,0.69501216]
[1768029701749,5.26525357,908.55,907.7,0.69501216]
[1768029701950,5.26525357,908.55,907.71,0.69501216]
[1768029702146,5.26525357,908.55,907.72,0.69501216]
[1768029702447,5.26525357,908.55,907.73,0.69501216]
[1768029702751,5.26525357,908.55,907.74,0.69501216]
[1768029702950,5.26525357,908.55,907.64,1.755]
[1768029703151,5.26525357,908.55,907.65,0.69512276]
[1768029703349,5.26525357,908.55,907.66,0.69512276]
[1768029703552,5.26525357,908.55,907.67,0.69512276]
[1768029703852,5.26525357,908.55,907.68,0.69512276]
[1768029704052,5.26525357,908.55,907.69,0.69512276]
[1768029704253,5.26525357,908.55,907.7,0.69512276]
[1768029704454,5.26525357,908.55,907.71,0.69512276]
[1768029704659,5.26525357,908.55,907.72,0.69512276]
[1768029704950,5.26525357,908.55,907.73,0.69512276]
[1768029705152,5.26525357,908.55,907.74,0.69512276]
[1768029705351,5.26525357,908.55,907.75,0.69512276]
[1768029705550,5.26525357,908.55,907.64,1.755]
[1768029705752,5.26525357,908.55,907.65,0.69526847]
[1768029705951,5.26525357,908.55,907.66,0.69526847]
[1768029706155,5.26525357,908.55,907.67,0.69526847]
[1768029706355,5.26525357,908.55,907.68,0.69526847]
[1768029706556,5.26525357,908.55,907.69,0.69526847]
[1768029706754,5.26525357,908.55,907.7,0.69526847]
[1768029706957,5.26525357,908.55,907.71,0.69526847]
[1768029707257,5.26525357,908.55,907.72,0.69526847]
[1768029707457,5.26525357,908.55,907.73,0.69526847]
[1768029707656,5.26525357,908.55,907.74,0.69526847]
[1768029707855,5.26525357,908.55,907.75,0.69526847]
[1768029708058,5.26525357,908.55,907.76,0.69526847]
[1768029708255,5.26525357,908.55,907.64,1.755]
[1768029708459,5.26525357,908.55,907.65,0.69548463]
[1768029708659,5.26525357,908.55,907.66,0.69548463]
[1768029708957,5.26525357,908.55,907.67,0.69548463]
[1768029709160,5.26525357,908.55,907.68,0.69548463]
[1768029709460,5.26525357,908.55,907.69,0.69548463]
[1768029709756,5.26525357,908.55,907.7,0.69548463]
[1768029709957,5.26525357,908.55,907.71,0.69548463]
[1768029710160,5.26525357,908.55,907.72,0.69548463]
[1768029710357,5.26525357,908.55,907.73,0.69548463]
[1768029710556,5.26525357,908.55,907.74,0.69548463]
[1768029710760,5.26525357,908.55,907.75,0.69548463]
[1768029711058,5.26525357,908.55,907.76,0.69548463]
[1768029711258,5.26525357,908.55,907.77,0.69548463]
[1768029711457,5.26525357,908.55,907.64,1.755]
[1768029711656,5.26525357,908.55,907.65,0.69442227]
[1768029711861,5.26525357,908.55,907.66,0.69442227]
[1768029712157,5.26525357,908.55,907.67,0.69442227]
[1768029712357,5.26525357,908.55,907.68,0.69442227]
[1768029712560,5.26525357,908.55,907.69,0.69442227]
[1768029712759,5.26525357,908.55,907.7,0.69442227]
[1768029712959,5.26525357,908.55,907.71,0.69442227]
[1768029713158,5.26525357,908.55,907.72,0.69442227]
[1768029713358,5.26525357,908.55,907.73,0.69442227]
[1768029713555,5.26525357,908.55,907.74,0.69442227]
[1768029713760,5.26525357,908.55,907.75,0.69442227]
[1768029713958,5.26525357,908.55,907.76,0.69442227]
[1768029714258,5.26525357,908.55,907.77,0.69442227]
[1768029714457,5.26525357,908.55,907.78,0.69442227]
[1768029714660,5.26525357,908.55,907.79,0.69442227]
[1768029714860,5.26525357,908.55,907.64,1.755]
[1768029715161,5.26525357,908.55,907.65,0.69477671]
[1768029715462,5.26525357,908.55,907.66,0.69477671]
[1768029715661,5.26525357,908.55,907.67,0.69477671]
[1768029715858,5.26525357,908.55,907.68,0.69477671]
[1768029716055,5.26525357,908.55,907.64,1.755]
[1768029716056,5.26525357,908.55,907.69,0.69477671]
[1768029716362,5.26525357,908.55,907.7,0.69477671]
[1768029716558,5.26525357,908.55,907.71,0.69477671]
[1768029716758,5.26525357,908.55,907.72,0.69477671]
[1768029716957,5.26525357,908.55,907.73,0.69477671]
[1768029717168,5.26525357,908.55,907.74,0.69477671]
[1768029717361,5.26525357,908.55,907.75,0.69477671]
[1768029717563,5.26525357,908.55,907.76,0.69477671]
[1768029717859,5.26525357,908.55,907.77,0.69477671]
[1768029718158,5.26525357,908.55,907.78,0.69477671]
[1768029718363,5.26525357,908.55,907.79,0.69477671]
[1768029718563,5.26525357,908.55,907.5,0.82432302]
[1768029718762,5.26525357,908.55,907.51,0.69467699]
[1768029718963,5.26525357,908.55,907.52,0.69467699]
[1768029719259,5.26525357,908.55,907.53,0.69467699]
[1768029719458,5.26525357,908.55,907.54,0.69467699]
[1768029719664,5.26525357,908.55,907.55,0.69467699]
[1768029719961,5.26525357,908.55,907.56,0.69467699]
[1768029720166,5.26525357,908.55,907.57,0.69467699]
[1768029720360,5.26525357,908.55,907.58,0.69467699]
[1768029720561,5.26525357,908.55,907.59,0.69467699]
[1768029720761,5.26525357,908.55,907.6,0.69467699]
[1768029720961,0.19160041,908.62,907.61,0.69467699]
[1768029721262,0.19160041,908.62,907.62,0.69467699]
[1768029721460,0.19160041,908.62,907.63,0.69467699]
[1768029721659,0.19160041,908.62,907.64,0.69467699]
[1768029721864,0.19160041,908.62,907.65,0.69467699]
[1768029722065,0.19160041,908.62,907.66,0.69467699]
[1768029722263,0.19160041,908.62,907.67,0.69467699]
[1768029722466,0.19160041,908.62,907.68,0.69467699]
[1768029722659,0.19160041,908.62,907.69,0.69467699]
[1768029722863,0.19160041,908.62,907.7,0.69467699]
[1768029723063,0.19160041,908.62,907.71,0.69467699]
[1768029723263,0.19160041,908.62,907.72,0.69467699]
[1768029723467,0.19160041,908.62,907.73,0.69467699]
[1768029723662,0.19160041,908.62,907.74,0.69467699]
[1768029723865,0.19160041,908.62,907.75,0.69467699]
[1768029724167,0.19160041,908.62,907.76,0.69467699]
[1768029724365,0.19160041,908.62,907.77,0.69467699]
[1768029724565,0.19160041,908.62,907.78,0.69467699]
[1768029724765,0.19160041,908.62,907.79,0.69467699]
[1768029725069,0.19160041,908.62,907.5,2.29332302]
[1768029725366,0.19160041,908.62,907.51,0.69469639]
[1768029725567,0.19160041,908.62,907.52,0.69469639]
[1768029725766,0.19160041,908.62,907.53,0.69469639]
[1768029725966,0.19160041,908.62,907.54,0.69469639]
[1768029726170,0.19160041,908.62,907.55,0.69469639]
[1768029726371,0.19160041,908.62,907.56,0.69469639]
[1768029726568,0.19160041,908.62,907.57,0.69469639]
[1768029726772,0.19160041,908.62,907.58,0.69469639]
[1768029727068,0.19160041,908.62,907.59,0.69469639]
[1768029727268,0.19160041,908.62,907.6,0.69469639]
[1768029727570,0.19160041,908.62,907.61,0.69469639]
[1768029727772,0.19160041,908.62,907.62,0.69469639]
[1768029727969,0.19160041,908.62,907.63,0.69469639]
[1768029728173,0.19160041,908.62,907.64,0.69469639]
[1768029728473,0.19160041,908.62,907.65,0.69469639]
[1768029728769,0.19160041,908.62,907.66,0.69469639]
[1768029728970,0.19160041,908.62,907.67,0.69469639]
[1768029729169,0.19160041,908.62,907.68,0.69469639]
[1768029729368,0.19160041,908.62,907.5,1.469]
[1768029729570,0.19160041,908.62,907.51,0.69486477]
[1768029729769,0.19160041,908.62,907.52,0.69486477]
[1768029729974,0.19160041,908.62,907.53,0.69486477]
[1768029730175,0.19160041,908.62,907.54,0.69486477]
[1768029730372,0.19160041,908.62,907.55,0.69486477]
[1768029730570,0.19160041,908.62,907.56,0.69486477]
[1768029730774,0.19160041,908.62,907.57,0.69486477]
[1768029730974,0.19160041,908.62,907.58,0.69486477]
[1768029731173,0.19160041,908.62,907.59,0.69486477]
[1768029731375,0.19160041,908.62,907.6,0.69486477]
[1768029731570,0.19160041,908.62,907.61,0.69486477]
[1768029731774,0.19160041,908.62,907.62,0.69486477]
[1768029731972,0.19160041,908.62,907.63,0.69486477]
[1768029732176,0.19160041,908.62,907.64,0.69486477]
[1768029732476,0.19160041,908.62,907.65,0.69486477]
[1768029732674,0.19160041,908.62,907.66,0.69486477]
[1768029732878,0.19160041,908.62,907.67,0.69486477]
[1768029733074,0.19160041,908.62,907.5,1.469]
[1768029733277,0.19160041,908.62,907.51,0.69490636]
[1768029733473,0.19160041,908.62,907.52,0.69490636]
[1768029733775,0.19160041,908.62,907.53,0.69490636]
[1768029733977,0.19160041,908.62,907.54,0.69490636]
[1768029734178,0.19160041,908.62,907.55,0.69490636]
[1768029734374,0.19160041,908.62,907.56,0.69490636]
[1768029734579,0.19160041,908.62,907.57,0.69490636]
[1768029734779,0.19160041,908.62,907.58,0.69490636]
[1768029734974,0.19160041,908.62,907.59,0.69490636]
[1768029735276,0.19160041,908.62,907.6,0.69490636]
[1768029735474,0.19160041,908.62,907.61,0.69490636]
[1768029735676,0.19160041,908.62,907.62,0.69490636]
[1768029735874,0.19160041,908.62,907.63,0.69490636]
[1768029736079,0.19160041,908.62,907.64,0.69490636]
[1768029736280,0.19160041,908.62,907.65,0.69490636]
[1768029736576,0.19160041,908.62,907.66,0.69490636]
[1768029736775,0.19160041,908.62,907.67,0.69490636]
[1768029736978,0.19160041,908.62,907.68,0.69490636]
[1768029737281,0.19160041,908.62,907.69,0.69490636]
[1768029737481,0.19160041,908.62,907.7,0.69490636]
[1768029737680,0.19160041,908.62,907.5,1.469]
[1768029737881,0.19160041,908.62,907.51,0.69507821]
[1768029738080,0.19160041,908.62,907.52,0.69507821]
[1768029738282,0.19160041,908.62,907.53,0.69507821]
[1768029738582,0.19160041,908.62,907.54,0.69507821]
[1768029738780,0.19160041,908.62,907.55,0.69507821]
[1768029738979,0.19160041,908.62,907.56,0.69507821]
[1768029739180,0.19160041,908.62,907.57,0.69507821]
[1768029739380,0.19160041,908.62,907.58,0.69507821]
[1768029739681,0.19160041,908.62,907.59,0.69507821]
[1768029739884,0.19160041,908.62,907.6,0.69507821]
[1768029740081,0.19160041,908.62,907.61,0.69507821]
[1768029740283,0.19160041,908.62,907.62,0.69507821]
[1768029740480,0.19160041,908.62,907.63,0.69507821]
[1768029740783,0.19160041,908.62,907.64,0.69507821]
[1768029740984,0.19160041,908.62,907.65,0.69507821]
[1768029741184,0.19160041,908.62,907.66,0.69507821]
[1768029741480,0.19160041,908.62,907.67,0.69507821]
[1768029741679,0.19160041,908.62,907.68,0.69507821]
[1768029741879,0.19160041,908.62,907.5,1.469]
[1768029742083,0.19160041,908.62,907.51,0.69474646]
[1768029742283,0.19160041,908.62,907.52,0.69474646]
[1768029742483,0.19160041,908.62,907.53,0.69474646]
[1768029742682,0.19160041,908.62,907.54,0.69474646]
[1768029742886,0.19160041,908.62,907.55,0.69474646]
[1768029743182,0.19160041,908.62,907.56,0.69474646]
[1768029743484,0.19160041,908.62,907.57,0.69474646]
[1768029743685,0.19160041,908.62,907.58,0.69474646]
[1768029743883,0.19160041,908.62,907.59,0.69474646]
[1768029744083,0.19160041,908.62,907.6,0.69474646]
[1768029744387,0.19160041,908.62,907.61,0.69474646]
[1768029744683,0.19160041,908.62,907.62,0.69474646]
[1768029744887,0.19160041,908.62,907.63,0.69474646]
[1768029745087,0.19160041,908.62,907.64,0.69474646]
[1768029745387,0.19160041,908.62,907.65,0.69474646]
[1768029745585,0.19160041,908.62,907.66,0.69474646]
[1768029745783,0.19160041,908.62,907.67,0.69474646]
[1768029745988,0.19160041,908.62,907.5,1.469]
[1768029746284,0.19160041,908.62,907.51,0.69465687]
[1768029746485,0.19160041,908.62,907.52,0.69465687]
[1768029746686,0.19160041,908.62,907.53,0.69465687]
[1768029746886,0.19160041,908.62,907.54,0.69465687]
[1768029747090,0.19160041,908.62,907.55,0.69465687]
[1768029747288,0.19160041,908.62,907.56,0.69465687]
[1768029747488,0.19160041,908.62,907.57,0.69465687]
[1768029747688,0.19160041,908.62,907.58,0.69465687]
[1768029747888,0.19160041,908.62,907.59,0.69465687]
[1768029748192,0.19160041,908.62,907.6,0.69465687]
[1768029748388,0.19160041,908.62,907.61,0.69465687]
[1768029748588,0.19160041,908.62,907.62,0.69465687]
[1768029748888,0.19160041,908.62,907.63,0.69465687]
[1768029749093,0.19160041,908.62,907.64,0.69465687]
[1768029749291,0.19160041,908.62,907.65,0.69465687]
[1768029749593,0.19160041,908.62,907.66,0.69465687]
[1768029749790,0.19160041,908.62,907.67,0.69465687]
[1768029749990,0.19160041,908.62,907.5,1.469]
[1768029750188,0.19160041,908.62,907.51,0.69461929]
[1768029750389,0.19160041,908.62,907.52,0.69461929]
[1768029750588,0.19160041,908.62,907.53,0.69461929]
[1768029750790,0.19160041,908.62,907.54,0.69461929]
[1768029750989,0.19160041,908.62,907.55,0.69461929]
[1768029751193,0.19160041,908.62,907.56,0.69461929]
[1768029751393,0.19160041,908.62,907.57,0.69461929]
[1768029751593,0.19160041,908.62,907.58,0.69461929]
[1768029751793,0.19160041,908.62,907.59,0.69461929]
[1768029751991,0.19160041,908.62,907.6,0.69461929]
[1768029752297,0.19160041,908.62,907.61,0.69461929]
[1768029752497,0.19160041,908.62,907.62,0.69461929]
[1768029752698,0.19160041,908.62,907.63,0.69461929]
[1768029752999,0.19160041,908.62,907.64,0.69461929]
[1768029753297,0.19160041,908.62,907.65,0.69461929]
[1768029753494,0.19160041,908.62,907.5,1.469]
[1768029753695,0.19160041,908.62,907.51,0.69465668]
[1768029753999,0.19160041,908.62,907.52,0.69465668]
[1768029754199,0.19160041,908.62,907.53,0.69465668]
[1768029754499,0.19160041,908.62,907.54,0.69465668]
[1768029754698,0.19160041,908.62,907.55,0.69465668]
[1768029754898,0.19160041,908.62,907.56,0.69465668]
[1768029755095,0.19160041,908.62,907.57,0.69465668]
[1768029755299,0.19160041,908.62,907.58,0.69465668]
[1768029755499,0.19160041,908.62,907.5,1.469]
[1768029755699,0.19160041,908.62,907.51,0.69455154]
[1768029755900,0.19160041,908.62,907.52,0.69455154]